bitfinex/quotes_SOLUSD_20250130
["timestamp","ask_amount","ask_price","bid_price","bid_amount"]
[1738259467573,1.0,240.8,240.65,12.44610217]
[1738259467574,17.22305087,240.74,240.65,12.44610217]
[1738259467862,0.6229487,240.73,240.65,12.44610217]
[1738259468027,12.44610217,240.7,240.63,0.03]
[1738259468231,0.6229487,240.69,240.63,0.03]
[1738259468449,12.44610217,240.64,240.63,0.03]
[1738259469339,16.60160217,240.64,240.63,0.03]
[1738259472239,30.0134507,240.64,240.63,0.03]
[1738259472464,30.6363994,240.64,240.63,0.0001]
[1738259472774,20.0,240.61,240.6,0.063]
[1738259472940,58.92700157,240.61,240.6,0.063]
[1738259473141,46.4808994,240.61,240.6,0.063]
[1738259473557,26.4808994,240.61,240.6,0.063]
[1738259474639,17.22515087,240.61,240.6,0.063]
[1738259474858,12.44610217,240.61,240.6,0.063]
[1738259475467,13.06905087,240.61,240.6,0.063]
[1738259476362,12.44610217,240.61,240.6,0.063]
[1738259476563,0.6229487,240.63,240.6,0.063]
[1738259476741,12.44610217,240.64,240.6,0.063]
[1738259478468,12.44610217,240.61,240.6,0.063]
[1738259479477,35.41184853,240.59,240.55,0.063]
[1738259479778,13.41184853,240.51,240.38,13.09993333]
[1738259479964,12.44610217,240.46,240.38,12.47610217]
[1738259480168,0.6229487,240.45,240.38,12.47610217]
[1738259480758,0.6229487,240.45,240.38,13.10002807]
[1738259480953,12.44610217,240.48,240.38,13.10002807]
[1738259481168,13.06905087,240.48,240.38,13.10002807]
[1738259481650,13.06905087,240.48,240.4,12.44610217]
[1738259481849,13.06905087,240.48,240.4,13.06994587]
[1738259482864,13.06905087,240.48,240.4,12.44610217]
[1738259483260,12.44610217,240.5,240.42,12.44610217]
[1738259483448,12.44610217,240.54,240.46,12.44610217]
[1738259483648,0.6229487,240.53,240.46,12.44610217]
[1738259483860,12.44610217,240.52,240.44,12.44610217]
[1738259484065,12.44610217,240.52,240.45,0.6237219]
[1738259485578,13.06905087,240.54,240.46,12.44610217]
[1738259485762,13.06905087,240.54,240.47,0.62366239]
[1738259485964,13.06905087,240.54,240.46,13.06976456]
[1738259486156,12.44610217,240.52,240.44,12.44610217]
[1738259486358,12.44610217,240.52,240.45,0.62370788]
[1738259490656,12.44610217,240.54,240.45,0.62370788]
[1738259491184,12.44610217,240.56,240.48,12.44610217]
[1738259491383,13.06905087,240.56,240.49,0.6235779]
[1738259491680,12.44610217,240.5,240.41,0.03]
[1738259491863,12.44610217,240.49,240.41,13.09989691]
[1738259492761,0.6229487,240.56,240.41,13.09989691]
[1738259492762,12.44610217,240.51,240.43,12.44610217]
[1738259492957,12.44610217,240.51,240.44,0.62370928]
[1738259494784,12.44610217,240.49,240.41,12.47610217]
[1738259495087,12.44610217,240.46,240.41,0.03]
[1738259496064,12.44610217,240.48,240.41,0.03]
[1738259497770,12.44610217,240.5,240.41,12.47610217]
[1738259498069,12.44610217,240.5,240.42,0.62374786]
[1738259499969,12.44610217,240.48,240.42,0.62374786]
[1738259500893,12.44610217,240.5,240.42,0.62374786]
[1738259504772,12.44610217,240.5,240.43,12.44610217]
[1738259504971,13.06905087,240.56,240.47,12.44610217]
[1738259505199,12.44610217,240.58,240.49,12.44610217]
[1738259505395,0.6229487,240.57,240.5,0.62358288]
[1738259505579,0.6229487,240.57,240.49,12.44610217]
[1738259505580,12.44610217,240.56,240.51,0.62363496]
[1738259505771,12.44610217,240.58,240.51,13.06973713]
[1738259505969,13.06905087,240.6,240.51,13.06973713]
[1738259506176,12.44610217,240.62,240.53,12.44610217]
[1738259506477,12.44610217,240.62,240.54,0.62346191]
[1738259506699,17.22495087,240.62,240.54,0.62346191]
[1738259507586,16.60200217,240.62,240.54,0.62346191]
[1738259507904,12.44610217,240.6,240.54,0.62346191]
[1738259509319,12.44610217,240.58,240.52,0.62348772]
[1738259509783,12.44610217,240.58,240.52,0.62348854]
[1738259510304,12.44610217,240.6,240.52,0.62348854]
[1738259510609,12.44610217,240.6,240.53,12.44610217]
[1738259510793,12.44610217,240.6,240.54,0.62346395]
[1738259511312,12.44610217,240.58,240.54,0.62346395]
[1738259511499,12.44610217,240.56,240.51,137.0]
[1738259511689,12.44610217,240.56,240.49,12.44610217]
[1738259511889,12.44610217,240.56,240.5,0.6235822]
[1738259512812,12.44610217,240.58,240.5,0.6235822]
[1738259513625,12.47610217,240.62,240.55,12.44610217]
[1738259513909,0.03,240.62,240.56,0.62342849]
[1738259515021,12.47610217,240.62,240.56,0.62342849]
[1738259517217,0.03,240.62,240.56,0.62342849]
[1738259517427,0.03,240.62,240.57,12.44610217]
[1738259517795,12.47610217,240.62,240.53,32.44610217]
[1738259518014,12.47610217,240.62,240.51,0.62340648]
[1738259518015,12.44610217,240.6,240.54,0.62346506]
[1738259518318,12.44610217,240.56,240.48,137.063]
[1738259518507,12.44610217,240.56,240.49,0.62359183]
[1738259519520,12.44610217,240.56,240.5,20.0]
[1738259520501,12.44610217,240.56,240.51,0.6235796]
[1738259521032,0.6529487,240.62,240.51,13.06968177]
[1738259521033,12.44610217,240.58,240.51,13.06968177]
[1738259521528,12.44610217,240.6,240.53,12.44610217]
[1738259521720,12.44610217,240.6,240.51,0.6235796]
[1738259521721,12.47610217,240.62,240.55,12.44610217]
[1738259521924,0.03,240.62,240.56,0.62342386]
[1738259522097,0.03,240.62,240.57,12.44610217]
[1738259522295,0.03,240.62,240.61,32.44610217]
[1738259524608,0.03,240.62,240.61,39.90073748]
[1738259526934,0.03,240.62,240.61,176.90073748]
[1738259527143,0.03,240.62,240.61,156.90073748]
[1738259527319,0.03,240.62,240.61,137.0]
[1738259527641,0.03,240.62,240.55,19.90073748]
[1738259527811,0.03,240.62,240.56,0.62341388]
[1738259529545,19.90073748,240.61,240.54,0.62342442]
[1738259529732,19.90073748,240.59,240.53,137.0]
[1738259529922,19.90073748,240.61,240.54,0.62351613]
[1738259530937,24.05683748,240.61,240.54,0.62351613]
[1738259531245,19.90073748,240.61,240.54,0.62351613]
[1738259531444,0.03,240.62,240.54,0.62351613]
[1738259532046,0.03,240.62,240.55,19.90073748]
[1738259532239,0.03,240.62,240.56,0.62338892]
[1738259535026,19.90073748,240.61,240.55,0.62342817]
[1738259537347,0.03,240.62,240.55,20.52416565]
[1738259537737,0.03,240.62,240.6,20.0]
[1738259537935,0.03,240.62,240.61,20.52403857]
[1738259538353,0.03,240.62,240.59,137.0]
[1738259538538,0.03,240.62,240.55,19.90073748]
[1738259538738,0.03,240.62,240.56,0.62341734]
[1738259541247,0.03,240.62,240.57,19.90073748]
[1738259541553,0.03,240.62,240.58,0.623398]
[1738259542055,0.03,240.62,240.55,19.90073748]
[1738259542256,0.03,240.62,240.56,0.62343207]
[1738259543829,0.03,240.62,240.55,19.90073748]
[1738259544030,0.03,240.62,240.56,20.0]
[1738259544561,0.03,240.62,240.54,33.07162361]
[1738259546664,0.03,240.62,240.56,12.28252233]
[1738259546862,0.03,240.62,240.57,0.62341316]
[1738259547068,0.03,240.62,240.58,12.44815572]
[1738259547364,0.03,240.62,240.59,0.62337421]
[1738259547660,0.03,240.62,240.58,12.44815572]
[1738259547661,0.03,240.62,240.56,12.44815572]
[1738259547863,0.03,240.62,240.57,0.62339446]
[1738259548742,0.03,240.62,240.55,0.62340949]
[1738259548955,12.44815572,240.59,240.54,137.0]
[1738259549160,12.44815572,240.57,240.54,137.0]
[1738259549351,12.44815572,240.57,240.48,149.51115572]
[1738259549649,12.44815572,240.57,240.49,0.62354203]
[1738259549965,0.6229487,240.56,240.49,0.62354203]
[1738259550369,12.44815572,240.55,240.48,137.063]
[1738259550556,12.44815572,240.55,240.49,0.62364317]
[1738259551542,12.44815572,240.55,240.49,0.62363356]
[1738259551979,12.44815572,240.55,240.48,137.063]
[1738259553075,12.44815572,240.55,240.49,0.62365413]
[1738259554285,13.07110442,240.57,240.5,12.44815572]
[1738259554569,6.5948,240.59,240.52,12.44815572]
[1738259554778,13.96485572,240.61,240.56,12.44815572]
[1738259554779,1.5167,240.61,240.56,12.44815572]
[1738259555067,6.1518,240.65,240.58,12.44815572]
[1738259556262,6.1518,240.65,240.59,0.62340412]
[1738259556650,6.1518,240.65,240.58,12.44815572]
[1738259557271,6.1518,240.65,240.59,0.62339737]
[1738259557481,6.1518,240.65,240.58,12.44815572]
[1738259557847,6.1518,240.65,240.59,0.62339858]
[1738259558772,14.07465572,240.67,240.59,0.62339858]
[1738259558974,1.6265,240.67,240.6,12.44815572]
[1738259559152,1.6265,240.67,240.61,0.62330712]
[1738259561561,1.6265,240.67,240.6,12.44815572]
[1738259561562,14.07465572,240.67,240.6,12.44815572]
[1738259561759,14.07465572,240.67,240.58,12.44815572]
[1738259561961,14.07465572,240.67,240.59,0.62333082]
[1738259562367,14.07465572,240.67,240.6,12.44815572]
[1738259562568,14.07465572,240.67,240.61,0.62328868]
[1738259563076,1.6265,240.67,240.61,0.62328868]
[1738259563273,6.162,240.7,240.61,0.62328868]
[1738259563480,0.03,240.72,240.61,137.62328868]
[1738259563656,0.03,240.72,240.61,137.0]
[1738259566056,0.6529487,240.72,240.61,137.0]
[1738259567078,0.03,240.72,240.61,137.0]
[1738259568580,0.6529487,240.72,240.61,137.0]
[1738259568875,12.44815572,240.71,240.61,137.0]
[1738259569275,0.6229487,240.7,240.61,137.0]
[1738259569785,13.07110442,240.71,240.61,137.0]
[1738259570483,12.44815572,240.71,240.61,137.0]
[1738259570981,13.07110442,240.71,240.61,137.0]
[1738259571979,17.22550442,240.71,240.61,137.0]
[1738259572481,12.44815572,240.67,240.61,137.0]
[1738259574384,12.44815572,240.67,240.58,149.44815572]
[1738259574576,12.44815572,240.63,240.56,12.44815572]
[1738259574774,12.44815572,240.63,240.57,0.62341208]
[1738259575163,12.44815572,240.63,240.57,20.0]
[1738259577282,12.44815572,240.63,240.58,0.62341633]
[1738259578492,12.44815572,240.61,240.55,0.62339797]
[1738259580266,12.44815572,240.61,240.53,0.62348514]
[1738259580794,12.44815572,240.61,240.55,0.063]
[1738259581490,12.44815572,240.61,240.55,0.68645668]
[1738259586798,0.6529487,240.62,240.55,0.68645668]
[1738259588497,0.6529487,240.62,240.56,12.44815572]
[1738259588797,0.03,240.62,240.6,12.44815572]
[1738259589093,0.03,240.62,240.61,0.62329444]
[1738259589707,0.0001,240.62,240.61,1.62329444]
[1738259589877,0.0001,240.62,240.61,152.03514297]
[1738259590197,1.5439,240.76,240.7,12.44815572]
[1738259591586,1.5439,240.76,240.65,0.62307321]
[1738259591776,1.5439,240.76,240.68,12.44815572]
[1738259592102,1.5439,240.76,240.69,0.62310073]
[1738259592279,1.5439,240.76,240.7,12.44815572]
[1738259592480,1.5439,240.76,240.71,0.62303749]
[1738259592876,12.44815572,240.75,240.68,32.44815572]
[1738259593102,0.6529487,240.74,240.66,13.07120017]
[1738259593597,0.03,240.74,240.66,13.07120017]
[1738259594094,0.03,240.74,240.68,32.44815572]
[1738259594278,0.03,240.74,240.69,0.62310279]
[1738259594786,0.03,240.74,240.68,32.44815572]
[1738259594994,0.6529487,240.74,240.68,20.0]
[1738259595377,0.03,240.74,240.69,0.62315478]
[1738259595578,0.03,240.74,240.68,20.0]
[1738259596673,0.03,240.74,240.66,12.44815572]
[1738259596674,12.44815572,240.73,240.66,0.62315082]
[1738259596908,12.44815572,240.69,240.6,12.44815572]
[1738259597111,12.44815572,240.67,240.61,0.62330116]
[1738259597411,14.01485572,240.65,240.58,0.62334297]
[1738259597585,14.01485572,240.65,240.59,20.0]
[1738259598221,12.44815572,240.63,240.59,20.0]
[1738259598907,12.44815572,240.63,240.57,0.62340022]
[1738259599220,12.44815572,240.63,240.56,13.07154703]
[1738259600317,2.1896487,240.65,240.55,0.063]
[1738259600318,12.44815572,240.61,240.55,0.063]
[1738259600623,12.44815572,240.59,240.55,0.063]
[1738259600812,12.44815572,240.61,240.55,0.063]
[1738259600987,14.01485572,240.65,240.56,13.07159084]
[1738259601181,14.01485572,240.65,240.58,12.44815572]
[1738259601387,1.5667,240.65,240.59,0.62337104]
[1738259601617,1.5667,240.65,240.61,12.44815572]
[1738259601827,6.388,240.67,240.62,0.62327935]
[1738259602198,12.44815572,240.69,240.62,0.62327935]
[1738259609535,12.44815572,240.65,240.57,12.44815572]
[1738259609703,12.44815572,240.65,240.58,0.62336638]
[1738259610130,12.44815572,240.63,240.57,13.07152078]
[1738259610312,12.44815572,240.63,240.56,137.0]
[1738259611320,12.44815572,240.63,240.55,0.063]
[1738259611321,0.6229487,240.62,240.55,0.063]
[1738259611500,0.6229487,240.62,240.55,0.68646984]
[1738259612322,12.44815572,240.63,240.55,0.68646984]
[1738259612728,12.44815572,240.62,240.55,0.68646984]
[1738259612941,13.07110442,240.62,240.55,0.68646984]
[1738259613103,12.44815572,240.62,240.55,0.68646984]
[1738259613820,12.44815572,240.62,240.55,13.13462556]
[1738259616518,12.44815572,240.63,240.55,13.13462556]
[1738259616715,12.44815572,240.61,240.55,0.063]
[1738259618301,4.8087487,240.63,240.55,12.51115572]
[1738259618302,13.10110442,240.63,240.55,12.51115572]
[1738259618628,12.47815572,240.63,240.56,13.07161063]
[1738259618936,0.03,240.63,240.59,12.44815572]
[1738259619121,0.03,240.63,240.61,12.44815572]
[1738259619843,0.03,240.63,240.6,0.62330584]
[1738259623143,0.03,240.63,240.61,12.44815572]
[1738259623344,0.03,240.63,240.62,0.623255]
[1738259627140,0.03,240.63,240.62,151.03510353]
[1738259627307,0.03,240.63,240.62,150.41184853]
[1738259629238,0.03,240.72,240.66,20.0]
[1738259629418,0.03,240.72,240.7,12.44815572]
[1738259629750,0.03,240.72,240.71,0.62302853]
[1738259630414,0.03,240.72,240.68,13.07119961]
[1738259630629,0.03,240.72,240.68,0.62304389]
[1738259631825,12.44815572,240.71,240.67,137.0]
[1738259632048,0.03,240.72,240.67,137.0]
[1738259632345,0.03,240.72,240.68,0.62317066]
[1738259632846,0.03,240.72,240.68,13.07132638]
[1738259634916,0.03,240.72,240.68,0.62317066]
[1738259635127,0.03,240.72,240.67,0.6231316]
[1738259635558,0.03,240.72,240.68,12.44815572]
[1738259635762,0.03,240.72,240.69,0.62309103]
[1738259638373,0.03,240.72,240.7,7.95784071]
[1738259638533,0.03,240.72,240.71,0.62298298]
[1738259646534,0.03,240.72,240.68,7.95784071]
[1738259646739,0.03,240.72,240.69,0.6230914]
[1738259647845,0.03,240.72,240.68,7.95784071]
[1738259647846,0.03,240.72,240.68,8.58094006]
[1738259648048,0.03,240.72,240.65,137.0]
[1738259648243,7.95784071,240.71,240.64,7.95784071]
[1738259648442,7.95784071,240.71,240.65,0.62321314]
[1738259648656,0.03,240.72,240.65,0.62321314]
[1738259648857,0.03,240.72,240.66,7.95784071]
[1738259649054,0.03,240.72,240.67,0.62317267]
[1738259650867,0.03,240.72,240.68,7.95784071]
[1738259651073,0.03,240.72,240.69,0.62310876]
[1738259653258,0.03,240.72,240.68,7.95784071]
[1738259653464,0.03,240.72,240.66,7.95784071]
[1738259654873,0.03,240.72,240.64,7.95784071]
[1738259655065,0.6529487,240.72,240.65,0.62321418]
[1738259655872,0.03,240.72,240.65,0.62321418]
[1738259656555,0.6229487,240.71,240.65,0.62321418]
[1738259656748,2.3104487,240.72,240.65,0.62321418]
[1738259657172,1.6875,240.72,240.66,7.95784071]
[1738259657374,1.6875,240.72,240.68,7.95784071]
[1738259658475,0.03,240.72,240.69,0.62313706]
[1738259658776,0.03,240.72,240.7,7.95784071]
[1738259658958,0.03,240.72,240.71,0.62306508]
[1738259664278,0.03,240.72,240.71,151.03491361]
[1738259664481,0.03,240.72,240.71,150.41184853]
[1738259664884,0.0001,240.72,240.71,182.24321137]
[1738259665063,0.03,240.81,240.75,20.0]
[1738259665258,0.03,240.81,240.8,7.95784071]
[1738259665665,0.03,240.81,240.77,0.62282613]
[1738259665872,0.03,240.81,240.76,144.95784071]
[1738259666258,7.98784071,240.81,240.76,137.0]
[1738259666460,0.6229487,240.8,240.76,137.0]
[1738259667368,12.14054071,240.81,240.76,137.0]
[1738259668885,0.6229487,240.8,240.76,137.0]
[1738259669476,0.6229487,240.8,240.72,7.95784071]
[1738259669664,0.6229487,240.8,240.73,0.6229987]
[1738259670171,7.95784071,240.77,240.7,7.95784071]
[1738259670486,7.95784071,240.77,240.71,0.62307163]
[1738259670693,7.95784071,240.77,240.7,0.62307163]
[1738259670864,7.95784071,240.77,240.65,7.95784071]
[1738259670865,7.95784071,240.73,240.65,7.95784071]
[1738259671184,8.58078941,240.73,240.66,0.62316346]
[1738259671483,7.95784071,240.71,240.66,0.62316346]
[1738259671974,8.58078941,240.73,240.66,0.62316346]
[1738259673881,8.58078941,240.73,240.66,8.58100417]
[1738259676087,1.6564,240.74,240.66,8.58100417]
[1738259676272,1.6564,240.74,240.66,8.64400417]
[1738259676594,1.6864,240.74,240.66,8.64400417]
[1738259676787,0.03,240.74,240.7,7.95784071]
[1738259676988,0.03,240.74,240.66,0.68616346]
[1738259676989,0.03,240.74,240.72,7.95784071]
[1738259677191,0.03,240.74,240.73,0.62302226]
[1738259682002,0.03,240.74,240.73,137.62302226]
[1738259682305,0.03,240.74,240.73,150.41184853]
[1738259682500,0.03,240.81,240.77,20.0]
[1738259682696,0.03,240.81,240.8,7.95784071]
[1738259686316,0.03,240.81,240.78,8.58055871]
[1738259686625,0.03,240.81,240.8,20.0]
[1738259687192,0.03,240.81,240.78,0.622718]
[1738259687519,0.03,240.81,240.79,7.95784071]
[1738259687698,0.03,240.81,240.8,0.62281894]
[1738259689607,0.03,240.81,240.78,0.62283948]
[1738259689806,0.03,240.81,240.77,137.0]
[1738259690007,0.03,240.81,240.78,0.62290233]
[1738259692520,0.03,240.81,240.78,0.62290233]
[1738259693723,0.03,240.81,240.77,7.95784071]
[1738259694117,0.03,240.81,240.78,0.62290341]
[1738259694949,0.03,240.81,240.77,7.95784071]
[1738259695150,0.03,240.81,240.78,0.62290084]
[1738259700352,0.03,240.81,240.79,7.95784071]
[1738259700555,0.03,240.81,240.8,0.62280683]
[1738259700750,0.03,240.81,240.8,137.62280683]
[1738259700922,0.03,240.81,240.8,137.0]
[1738259701128,0.03,240.81,240.8,150.41184853]
[1738259701737,0.03,240.86,240.8,182.24321137]
[1738259701954,0.03,240.86,240.85,7.95784071]
[1738259702259,0.03,240.86,240.85,158.99221161]
[1738259702463,0.03,240.86,240.85,158.36968924]
[1738259704956,0.03,240.88,240.85,158.36968924]
[1738259705160,0.03,240.88,240.86,14.03435657]
[1738259705664,0.03,240.88,240.87,41.36968924]
[1738259706381,0.03,240.88,240.87,158.36968924]
[1738259709892,0.03,240.88,240.85,137.0]
[1738259710184,0.03,240.88,240.86,0.62267653]
[1738259711692,0.03,240.88,240.87,7.95784071]
[1738259714377,0.03,240.88,240.87,8.58042902]
[1738259722003,0.03,240.88,240.87,158.99227755]
[1738259722297,0.03,240.89,240.88,13.41184853]
[1738259723363,0.03,240.89,240.88,14.0342802]
[1738259723565,0.03,240.89,240.88,0.62243167]
[1738259725889,0.03,240.89,240.88,137.62243167]
[1738259726092,0.03,240.89,240.88,137.0]
[1738259726389,0.03,240.89,240.88,150.41184853]
[1738259734495,0.03,240.89,240.86,0.063]
[1738259734687,0.03,240.89,240.86,0.68564886]
[1738259734888,0.03,240.89,240.86,0.063]
[1738259736502,0.6529487,240.89,240.86,0.063]
[1738259736697,7.95784071,240.88,240.86,0.063]
[1738259736887,8.58078941,240.88,240.86,0.063]
[1738259738300,12.73218941,240.88,240.86,0.063]
[1738259738804,8.58078941,240.88,240.86,0.063]
[1738259739007,12.73228941,240.88,240.86,0.063]
[1738259743498,0.03,240.89,240.86,0.063]
[1738259743820,0.03,240.89,240.86,0.68569329]
[1738259744318,0.03,240.89,240.86,0.063]
[1738259744502,0.03,240.89,240.86,0.68566632]
[1738259745593,7.95784071,240.88,240.86,0.063]
[1738259745791,14.03479723,240.87,240.81,0.063]
[1738259746122,7.95784071,240.82,240.74,0.063]
[1738259746326,7.95784071,240.77,240.74,0.063]
[1738259746704,12.43620177,240.75,240.74,0.063]
[1738259747510,16.58980177,240.75,240.74,0.063]
[1738259748842,17.21275047,240.75,240.74,0.063]
[1738259760537,13.05915047,240.75,240.74,0.063]
[1738259760838,17.21275047,240.75,240.74,0.063]
[1738259763047,13.05915047,240.75,240.74,0.063]
[1738259763232,16.58920177,240.79,240.74,0.063]
[1738259763436,0.6229487,240.78,240.74,0.063]
[1738259763749,13.05915047,240.79,240.74,0.063]
[1738259764745,0.6229487,240.78,240.74,0.063]
[1738259766134,4.7761487,240.78,240.74,0.063]
[1738259766945,12.43620177,240.77,240.74,0.063]
[1738259768842,16.61900177,240.81,240.74,0.063]
[1738259769050,0.03,240.81,240.76,12.43620177]
[1738259769351,0.03,240.81,240.77,0.62292806]
[1738259769973,0.03,240.81,240.74,13.12212042]
[1738259770253,12.46620177,240.81,240.74,13.12212042]
[1738259770949,12.43620177,240.79,240.74,0.68591865]
[1738259771153,12.43620177,240.79,240.74,0.063]
[1738259772551,16.58920177,240.79,240.74,0.063]
[1738259773736,12.43620177,240.79,240.74,0.063]
[1738259774336,13.05915047,240.79,240.74,0.063]
[1738259775030,12.43620177,240.75,240.74,0.063]
[1738259775857,13.05915047,240.75,240.74,0.063]
[1738259776237,17.21275047,240.75,240.74,0.063]
[1738259776648,43.06080077,240.75,240.74,0.0001]
[1738259776933,1.5208,240.71,240.66,0.063]
[1738259777146,12.43620177,240.67,240.66,0.063]
[1738259778245,12.43620177,240.69,240.66,0.063]
[1738259778645,16.59070177,240.71,240.66,0.063]
[1738259778851,0.6229487,240.7,240.66,0.063]
[1738259780749,17.21295047,240.74,240.66,12.49920177]
[1738259780948,13.05915047,240.74,240.67,0.62318956]
[1738259783343,17.21295047,240.74,240.66,13.12236939]
[1738259783543,13.05915047,240.74,240.66,13.12236939]
[1738259784362,13.05915047,240.74,240.67,0.62317189]
[1738259784741,0.6229487,240.75,240.67,0.62317189]
[1738259785049,12.43620177,240.78,240.7,12.43620177]
[1738259785262,12.43620177,240.78,240.71,0.62306029]
[1738259786442,12.43620177,240.8,240.72,12.43620177]
[1738259786638,12.43620177,240.8,240.73,0.62300194]
[1738259791964,16.58900177,240.8,240.73,0.62300194]
[1738259792966,0.6229487,240.79,240.73,0.62300194]
[1738259793169,12.43620177,240.76,240.71,137.0]
[1738259793362,12.43620177,240.76,240.67,149.49920177]
[1738259793553,12.43620177,240.76,240.68,0.62309657]
[1738259794660,12.43620177,240.78,240.71,12.43620177]
[1738259794852,12.43620177,240.78,240.72,0.62303972]
[1738259796267,13.05915047,240.78,240.72,0.62303972]
[1738259796488,12.43620177,240.78,240.72,0.62303972]
[1738259797683,12.43620177,240.8,240.72,0.62303972]
[1738259797852,0.03,240.78,240.72,0.62303972]
[1738259800068,0.03,240.78,240.73,12.43620177]
[1738259800263,0.03,240.78,240.74,0.62297008]
[1738259801163,0.03,240.78,240.77,12.43620177]
[1738259801557,0.03,240.78,240.77,13.05908524]
[1738259801963,0.03,240.78,240.77,165.07103377]
[1738259802292,0.03,240.78,240.77,164.4481503]
[1738259805259,0.03,240.81,240.8,20.0]
[1738259805483,0.03,240.81,240.8,33.05888496]
[1738259805660,0.03,240.81,240.8,183.47073349]
[1738259805860,0.03,240.81,240.8,182.8480503]
[1738259808562,0.03,240.81,240.8,169.43620177]
[1738259810976,0.03,240.81,240.8,182.8480503]
[1738259812588,0.03,240.81,240.8,169.43620177]
[1738259818476,0.03,240.81,240.8,32.43620177]
[1738259818672,0.03,240.81,240.8,20.0]
[1738259818873,0.03,240.81,240.8,20.62281616]
[1738259819073,0.03,240.81,240.8,0.62281616]
[1738259819387,0.03,240.81,240.79,8.57385722]
[1738259819772,0.03,240.81,240.78,0.62286534]
[1738259820070,0.03,240.81,240.75,0.62289349]
[1738259820276,0.03,240.81,240.74,137.0]
[1738259820277,0.6529487,240.81,240.74,137.0]
[1738259820476,0.6529487,240.81,240.73,145.01401669]
[1738259820688,13.08314703,240.81,240.74,0.62298053]
[1738259821694,13.08314703,240.81,240.78,0.063]
[1738259822077,0.6529487,240.81,240.78,0.063]
[1738259822277,0.03,240.81,240.78,0.063]
[1738259822476,0.03,240.81,240.8,12.43019833]
[1738259823185,0.03,240.81,240.78,12.49319833]
[1738259823391,0.03,240.81,240.78,0.063]
[1738259824295,0.03,240.81,240.78,0.68594398]
[1738259824485,0.03,240.81,240.79,12.43019833]
[1738259825293,0.03,240.81,240.8,0.62284942]
[1738259827192,0.03,240.81,240.78,0.063]
[1738259828398,0.03,240.81,240.78,0.68589267]
[1738259828602,0.03,240.81,240.79,12.43019833]
[1738259828804,0.03,240.81,240.8,0.62282457]
[1738259829891,0.03,240.81,240.8,137.62282457]
[1738259830074,0.03,240.81,240.8,137.0]
[1738259831698,0.03,240.81,240.8,150.41184853]
[1738259832495,0.03,240.81,240.8,162.84204686]
[1738259832705,0.03,240.81,240.8,150.41184853]
[1738259833392,0.03,240.81,240.8,163.21851686]
[1738259833590,0.03,240.89,240.84,20.0]
[1738259833815,0.03,240.89,240.88,12.43019833]
[1738259835303,0.03,240.89,240.86,12.43019833]
[1738259836911,0.03,240.89,240.85,0.62257066]
[1738259837912,0.03,240.89,240.82,12.43019833]
[1738259838105,0.03,240.89,240.83,0.62275146]
[1738259840705,0.03,240.89,240.84,12.43019833]
[1738259841012,0.03,240.89,240.84,13.05291951]
[1738259841593,0.03,240.89,240.88,12.43019833]
[1738259842006,0.03,240.89,240.88,13.05279454]
[1738259842921,0.03,240.89,240.88,12.43019833]
[1738259845251,0.03,240.89,240.88,13.05279374]
[1738259845937,0.03,240.89,240.88,163.46464227]
[1738259846106,0.03,240.89,240.88,162.84204686]
[1738259848599,0.03,240.97,240.91,20.0]
[1738259848800,0.03,240.97,240.96,20.0]
[1738259849019,0.03,240.97,240.96,182.84204686]
[1738259849725,0.03,240.97,240.96,195.27224519]
[1738259850521,0.03,240.99,240.97,13.41184853]
[1738259850720,0.03,240.99,240.98,26.4641842]
[1738259851123,0.063,241.02,241.01,20.0]
[1738259851329,0.063,241.02,241.01,183.46413856]
[1738259851535,0.063,241.02,241.01,182.84204686]
[1738259852138,0.063,241.02,241.01,169.43019833]
[1738259852446,0.063,241.02,241.01,32.43019833]
[1738259853545,0.063,241.02,241.01,12.43019833]
[1738259854820,0.063,241.02,241.01,25.84204686]
[1738259855648,0.063,241.02,241.01,12.43019833]
[1738259860850,0.063,241.02,241.0,0.62231779]